[Event "Titled Tuesday Blitz February 07 Late 2023"]
[White "Preotu, Razvan"]
[Black "Matko, Ognjen"]
[WhiteFideId "2613280"]
[BlackFideId "14509717"]
[WhiteElo "2475"]
[BlackElo "2295"]
[Result "1-0"]
[Round "05"]
[TimeControl "180+2"]
[Date "2023.02.07"]
[WhiteClock "0:00:03"]
[BlackClock "0:00:03"]

1. e4 {[%clk 0:03:00]}  e5 {[%clk 0:02:59]} 2. Nf3 {[%clk 0:03:00]}  Nc6 {[%clk 0:02:59]} 3. Bc4 {[%clk 0:02:59]}  Bc5 {[%clk 0:02:58]} 4. c3 {[%clk 0:03:00]}  Nf6 {[%clk 0:02:55]} 5. d3 {[%clk 0:03:00]}  d6 {[%clk 0:02:51]} 6. O-O {[%clk 0:03:00]}  a6 {[%clk 0:02:50]} 7. a4 {[%clk 0:02:58]}  Ba7 {[%clk 0:02:49]} 8. Re1 {[%clk 0:02:57]}  O-O {[%clk 0:02:47]} 9. h3 {[%clk 0:02:56]}  h6 {[%clk 0:02:46]} 10. Nbd2 {[%clk 0:02:56]}  Qe7 {[%clk 0:02:42]} 11. b4 {[%clk 0:02:50]}  Be6 {[%clk 0:02:40]} 12. Bxe6 {[%clk 0:02:34]}  fxe6 {[%clk 0:02:38]} 13. Nf1 {[%clk 0:02:23]}  Nh5 {[%clk 0:02:32]} 14. Be3 {[%clk 0:02:15]}  Qf7 {[%clk 0:02:17]} 15. b5 {[%clk 0:02:12]}  Bxe3 {[%clk 0:02:01]} 16. fxe3 {[%clk 0:01:38]}  Ne7 {[%clk 0:01:59]} 17. Qb3 {[%clk 0:01:16]}  a5 {[%clk 0:01:52]} 18. d4 {[%clk 0:01:06]}  Qg6 {[%clk 0:01:46]} 19. N1d2 {[%clk 0:00:52]}  Rf7 {[%clk 0:01:28]} 20. dxe5 {[%clk 0:00:51]}  Raf8 {[%clk 0:01:24]} 21. Rf1 {[%clk 0:00:28]}  Ng3 {[%clk 0:01:20]} 22. Rf2 {[%clk 0:00:28]}  Nxe4 {[%clk 0:01:10]} 23. Nxe4 {[%clk 0:00:29]}  Rxf3 {[%clk 0:01:03]} 24. exd6 {[%clk 0:00:26]}  Nd5 {[%clk 0:00:55]} 25. Rxf3 {[%clk 0:00:23]}  Rxf3 {[%clk 0:00:53]} 26. d7 {[%clk 0:00:19]}  Rf8 {[%clk 0:00:41]} 27. Nc5 {[%clk 0:00:19]}  b6 {[%clk 0:00:31]} 28. Nb7 {[%clk 0:00:19]}  Nxe3 {[%clk 0:00:30]} 29. Qa2 {[%clk 0:00:19]}  Qd3 {[%clk 0:00:24]} 30. d8=Q {[%clk 0:00:16]}  Rxd8 {[%clk 0:00:23]} 31. Nxd8 {[%clk 0:00:16]}  Nc4 {[%clk 0:00:20]} 32. Nxe6 {[%clk 0:00:15]}  Qe3+ {[%clk 0:00:20]} 33. Kh1 {[%clk 0:00:15]}  Qxe6 {[%clk 0:00:21]} 34. Rf1 {[%clk 0:00:13]}  Qe4 {[%clk 0:00:17]} 35. Qf2 {[%clk 0:00:11]}  Ne3 {[%clk 0:00:15]} 36. Re1 {[%clk 0:00:09]}  Ng4 {[%clk 0:00:08]} 37. hxg4 {[%clk 0:00:08]}  Qxg4 {[%clk 0:00:07]} 38. Qd4 {[%clk 0:00:03]}  Qg3 {[%clk 0:00:05]} 39. Re8+ {[%clk 0:00:02]}  Kh7 {[%clk 0:00:03]} 40. Qe4+ {[%clk 0:00:02]}  g6 {[%clk 0:00:03]} 41. Qe7# {[%clk 0:00:03]} 1-0


[Site "https://www.chess.com"]

[Event "Titled Tuesday Blitz February 07 Late 2023"]
[White "Urbina Perez, Juan Antonio"]
[Black "Starozhilov, Leonid"]
[WhiteFideId "2217368"]
[BlackFideId "14106752"]
[WhiteElo "2266"]
[BlackElo "2313"]
[Result "0-1"]
[Round "05"]
[TimeControl "180+2"]
[Date "2023.02.07"]
[WhiteClock "0:01:56"]
[BlackClock "0:01:26"]

1. e4 {[%clk 0:02:54]}  Nc6 {[%clk 0:02:58]} 2. d4 {[%clk 0:02:49]}  d6 {[%clk 0:02:59]} 3. c3 {[%clk 0:02:47]}  Nf6 {[%clk 0:02:58]} 4. Bd3 {[%clk 0:02:46]}  e5 {[%clk 0:02:58]} 5. Nf3 {[%clk 0:02:41]}  Bg4 {[%clk 0:02:56]} 6. Be3 {[%clk 0:02:35]}  d5 {[%clk 0:02:45]} 7. exd5 {[%clk 0:02:26]}  Nxd5 {[%clk 0:02:33]} 8. Nbd2 {[%clk 0:02:18]}  exd4 {[%clk 0:02:24]} 9. Bxd4 {[%clk 0:02:16]}  Nxd4 {[%clk 0:02:17]} 10. cxd4 {[%clk 0:02:17]}  Qe7+ {[%clk 0:02:02]} 11. Qe2 {[%clk 0:02:08]}  Qxe2+ {[%clk 0:01:51]} 12. Bxe2 {[%clk 0:02:09]}  Nf4 {[%clk 0:01:46]} 13. h3 {[%clk 0:02:08]}  Bh5 {[%clk 0:01:39]} 14. O-O {[%clk 0:01:58]}  Nxe2+ {[%clk 0:01:38]} 15. Kh2 {[%clk 0:01:58]}  O-O-O {[%clk 0:01:31]} 16. Rfe1 {[%clk 0:01:57]}  Nxd4 {[%clk 0:01:27]} 17. Ne5 {[%clk 0:01:56]}  Bd6 {[%clk 0:01:26]} 0-1


[Site "https://www.chess.com"]

[Event "Titled Tuesday Blitz February 07 Late 2023"]
[White "Prydun, Andriy"]
[Black "Papasimakopoulos, Alexandros"]
[WhiteFideId "14145898"]
[BlackFideId "4244125"]
[WhiteElo "2134"]
[BlackElo "2401"]
[Result "0-1"]
[Round "05"]
[TimeControl "180+2"]
[Date "2023.02.07"]
[WhiteClock "0:00:02"]
[BlackClock "0:01:08"]

1. e4 {[%clk 0:02:49]}  e6 {[%clk 0:02:57]} 2. d4 {[%clk 0:02:41]}  d5 {[%clk 0:02:57]} 3. Nd2 {[%clk 0:02:34]}  Nf6 {[%clk 0:02:56]} 4. e5 {[%clk 0:02:30]}  Nfd7 {[%clk 0:02:57]} 5. Bd3 {[%clk 0:02:28]}  c5 {[%clk 0:02:57]} 6. c3 {[%clk 0:02:28]}  Nc6 {[%clk 0:02:58]} 7. Ne2 {[%clk 0:02:27]}  cxd4 {[%clk 0:02:59]} 8. cxd4 {[%clk 0:02:26]}  f6 {[%clk 0:03:00]} 9. O-O {[%clk 0:01:53]}  fxe5 {[%clk 0:02:58]} 10. dxe5 {[%clk 0:01:53]}  Ndxe5 {[%clk 0:02:58]} 11. Bc2 {[%clk 0:01:51]}  Bd6 {[%clk 0:02:58]} 12. b4 {[%clk 0:01:08]}  Nxb4 {[%clk 0:02:44]} 13. Bb1 {[%clk 0:00:46]}  O-O {[%clk 0:02:41]} 14. Bb2 {[%clk 0:00:45]}  Qh4 {[%clk 0:02:38]} 15. h3 {[%clk 0:00:43]}  Ng4 {[%clk 0:02:32]} 16. Qe1 {[%clk 0:00:05]}  Bh2+ {[%clk 0:01:41]} 17. Kh1 {[%clk 0:00:04]}  Rxf2 {[%clk 0:01:37]} 18. Nd4 {[%clk 0:00:03]}  Qg3 {[%clk 0:01:17]} 19. Rg1 {[%clk 0:00:01]}  Bxg1 {[%clk 0:01:11]} 20. Qxg1 {[%clk 0:00:02]}  Rxd2 {[%clk 0:01:10]} 21. Nf3 {[%clk 0:00:02]}  Nf2+ {[%clk 0:01:08]} 0-1


[Site "https://www.chess.com"]

[Event "Titled Tuesday Blitz February 07 Late 2023"]
[White "Dudzinski, Pawel"]
[Black "Martynov, Pavel"]
[WhiteFideId "1117890"]
[BlackFideId "4101260"]
[WhiteElo "2186"]
[BlackElo "2414"]
[Result "1-0"]
[Round "05"]
[TimeControl "180+2"]
[Date "2023.02.07"]
[WhiteClock "0:00:37"]
[BlackClock "0:00:14"]

1. e4 {[%clk 0:02:57]}  c5 {[%clk 0:02:59]} 2. c4 {[%clk 0:02:57]}  e6 {[%clk 0:02:58]} 3. Nc3 {[%clk 0:02:57]}  Nc6 {[%clk 0:02:58]} 4. g3 {[%clk 0:02:57]}  g6 {[%clk 0:02:57]} 5. Bg2 {[%clk 0:02:58]}  Bg7 {[%clk 0:02:57]} 6. Rb1 {[%clk 0:02:58]}  Nge7 {[%clk 0:02:57]} 7. a3 {[%clk 0:02:59]}  d6 {[%clk 0:02:48]} 8. Nge2 {[%clk 0:02:59]}  O-O {[%clk 0:02:47]} 9. b4 {[%clk 0:02:59]}  Nd4 {[%clk 0:02:46]} 10. d3 {[%clk 0:02:54]}  Nec6 {[%clk 0:02:41]} 11. Nxd4 {[%clk 0:02:53]}  Nxd4 {[%clk 0:02:39]} 12. Ne2 {[%clk 0:02:54]}  Nxe2 {[%clk 0:01:47]} 13. Qxe2 {[%clk 0:02:54]}  e5 {[%clk 0:01:47]} 14. f4 {[%clk 0:02:54]}  b6 {[%clk 0:01:45]} 15. f5 {[%clk 0:02:50]}  gxf5 {[%clk 0:01:21]} 16. exf5 {[%clk 0:02:51]}  Bxf5 {[%clk 0:01:21]} 17. O-O {[%clk 0:02:51]}  Bg6 {[%clk 0:01:17]} 18. Bxa8 {[%clk 0:02:49]}  Qxa8 {[%clk 0:01:17]} 19. Bg5 {[%clk 0:02:45]}  d5 {[%clk 0:01:13]} 20. Rbd1 {[%clk 0:02:27]}  e4 {[%clk 0:01:04]} 21. dxe4 {[%clk 0:01:58]}  Bxe4 {[%clk 0:01:01]} 22. cxd5 {[%clk 0:01:51]}  Bxd5 {[%clk 0:00:56]} 23. Bf6 {[%clk 0:01:51]}  Be6 {[%clk 0:00:32]} 24. Bxg7 {[%clk 0:01:41]}  Kxg7 {[%clk 0:00:33]} 25. Qe5+ {[%clk 0:01:41]}  Kg8 {[%clk 0:00:32]} 26. Qg5+ {[%clk 0:01:33]}  Kh8 {[%clk 0:00:32]} 27. Qf6+ {[%clk 0:01:34]}  Kg8 {[%clk 0:00:32]} 28. Rde1 {[%clk 0:01:23]}  Qd5 {[%clk 0:00:27]} 29. Re5 {[%clk 0:01:05]}  Qd4+ {[%clk 0:00:27]} 30. Kg2 {[%clk 0:00:57]}  Rd8 {[%clk 0:00:19]} 31. Rg5+ {[%clk 0:00:48]}  Kf8 {[%clk 0:00:19]} 32. Qxe6 {[%clk 0:00:40]}  Qd2+ {[%clk 0:00:18]} 33. Kh3 {[%clk 0:00:40]}  Rd7 {[%clk 0:00:15]} 34. Qh6+ {[%clk 0:00:39]}  Ke8 {[%clk 0:00:14]} 35. Rg8+ {[%clk 0:00:37]} 1-0


[Site "https://www.chess.com"]

[Event "Titled Tuesday Blitz February 07 Late 2023"]
[White "Diaz Perez, Michel Alejandro"]
[Black "Bilan, Danila"]
[WhiteFideId "3517179"]
[BlackFideId "24161918"]
[WhiteElo "2414"]
[BlackElo "2303"]
[Result "0-1"]
[Round "05"]
[TimeControl "180+2"]
[Date "2023.02.07"]
[WhiteClock "0:00:02"]
[BlackClock "0:00:12"]

1. Nf3 {[%clk 0:03:00]}  d5 {[%clk 0:02:59]} 2. c4 {[%clk 0:03:00]}  c6 {[%clk 0:02:59]} 3. e3 {[%clk 0:02:59]}  Nf6 {[%clk 0:02:59]} 4. b3 {[%clk 0:02:59]}  Bf5 {[%clk 0:02:56]} 5. Bb2 {[%clk 0:02:59]}  e6 {[%clk 0:02:56]} 6. Be2 {[%clk 0:02:57]}  h6 {[%clk 0:02:56]} 7. O-O {[%clk 0:02:56]}  Bd6 {[%clk 0:02:55]} 8. Nc3 {[%clk 0:02:56]}  O-O {[%clk 0:02:53]} 9. Rc1 {[%clk 0:02:55]}  Nbd7 {[%clk 0:02:53]} 10. d3 {[%clk 0:02:53]}  Qe7 {[%clk 0:02:50]} 11. cxd5 {[%clk 0:02:48]}  exd5 {[%clk 0:02:48]} 12. h3 {[%clk 0:02:46]}  Ba3 {[%clk 0:02:45]} 13. Qd2 {[%clk 0:02:46]}  Rfe8 {[%clk 0:02:41]} 14. Rfe1 {[%clk 0:02:40]}  a5 {[%clk 0:02:33]} 15. Bf1 {[%clk 0:02:37]}  Bxb2 {[%clk 0:02:29]} 16. Qxb2 {[%clk 0:02:36]}  Ne5 {[%clk 0:02:28]} 17. Nxe5 {[%clk 0:02:19]}  Qxe5 {[%clk 0:02:27]} 18. Qd2 {[%clk 0:02:16]}  Re7 {[%clk 0:02:17]} 19. Na4 {[%clk 0:02:15]}  Nd7 {[%clk 0:02:13]} 20. e4 {[%clk 0:02:08]}  dxe4 {[%clk 0:02:05]} 21. dxe4 {[%clk 0:02:09]}  Bg6 {[%clk 0:01:56]} 22. f4 {[%clk 0:02:07]}  Qc7 {[%clk 0:01:48]} 23. e5 {[%clk 0:02:04]}  Rd8 {[%clk 0:01:35]} 24. Qf2 {[%clk 0:02:02]}  Bf5 {[%clk 0:01:24]} 25. g4 {[%clk 0:01:58]}  Be6 {[%clk 0:01:24]} 26. Rcd1 {[%clk 0:01:47]}  Bd5 {[%clk 0:01:19]} 27. Rd2 {[%clk 0:01:30]}  f6 {[%clk 0:01:10]} 28. exf6 {[%clk 0:01:21]}  Nxf6 {[%clk 0:01:05]} 29. Rxe7 {[%clk 0:01:19]}  Qxe7 {[%clk 0:01:04]} 30. Re2 {[%clk 0:01:18]}  Qb4 {[%clk 0:00:54]} 31. Bg2 {[%clk 0:01:10]}  Rf8 {[%clk 0:00:42]} 32. Nc5 {[%clk 0:01:02]}  Bxg2 {[%clk 0:00:37]} 33. Kxg2 {[%clk 0:01:03]}  Nd5 {[%clk 0:00:37]} 34. Ne6 {[%clk 0:00:56]}  Nxf4+ {[%clk 0:00:32]} 35. Nxf4 {[%clk 0:00:47]}  Qxf4 {[%clk 0:00:30]} 36. Qxf4 {[%clk 0:00:45]}  Rxf4 {[%clk 0:00:31]} 37. Re8+ {[%clk 0:00:44]}  Rf8 {[%clk 0:00:31]} 38. Re7 {[%clk 0:00:45]}  Rf7 {[%clk 0:00:31]} 39. Re8+ {[%clk 0:00:45]}  Rf8 {[%clk 0:00:31]} 40. Re7 {[%clk 0:00:45]}  Rf7 {[%clk 0:00:32]} 41. Re5 {[%clk 0:00:45]}  b6 {[%clk 0:00:31]} 42. Re8+ {[%clk 0:00:44]}  Rf8 {[%clk 0:00:31]} 43. Re6 {[%clk 0:00:44]}  Rc8 {[%clk 0:00:27]} 44. Re7 {[%clk 0:00:45]}  c5 {[%clk 0:00:21]} 45. Rb7 {[%clk 0:00:46]}  Rc6 {[%clk 0:00:21]} 46. Kf3 {[%clk 0:00:45]}  Re6 {[%clk 0:00:22]} 47. Kf4 {[%clk 0:00:41]}  Kh7 {[%clk 0:00:20]} 48. h4 {[%clk 0:00:42]}  Kg6 {[%clk 0:00:14]} 49. a4 {[%clk 0:00:37]}  Kf6 {[%clk 0:00:12]} 50. h5 {[%clk 0:00:35]}  Rd6 {[%clk 0:00:11]} 51. Ke4 {[%clk 0:00:29]}  Rd4+ {[%clk 0:00:11]} 52. Kf3 {[%clk 0:00:28]}  Rb4 {[%clk 0:00:12]} 53. Ke3 {[%clk 0:00:19]}  Rxb3+ {[%clk 0:00:12]} 54. Ke4 {[%clk 0:00:20]}  Rb4+ {[%clk 0:00:13]} 55. Kd5 {[%clk 0:00:20]}  Rxa4 {[%clk 0:00:13]} 56. Rxb6+ {[%clk 0:00:18]}  Kf7 {[%clk 0:00:14]} 57. g5 {[%clk 0:00:17]}  hxg5 {[%clk 0:00:11]} 58. Rg6 {[%clk 0:00:18]}  g4 {[%clk 0:00:10]} 59. Kxc5 {[%clk 0:00:18]}  Rf4 {[%clk 0:00:10]} 60. Kb5 {[%clk 0:00:16]}  Rf5+ {[%clk 0:00:09]} 61. Ka4 {[%clk 0:00:15]}  Rxh5 {[%clk 0:00:10]} 62. Rxg4 {[%clk 0:00:16]}  Rf5 {[%clk 0:00:10]} 63. Kb3 {[%clk 0:00:11]}  g5 {[%clk 0:00:10]} 64. Kc3 {[%clk 0:00:11]}  Kg6 {[%clk 0:00:11]} 65. Kd3 {[%clk 0:00:12]}  Rf4 {[%clk 0:00:11]} 66. Rg1 {[%clk 0:00:12]}  g4 {[%clk 0:00:11]} 67. Ke3 {[%clk 0:00:12]}  Kg5 {[%clk 0:00:11]} 68. Rb1 {[%clk 0:00:10]}  Rf3+ {[%clk 0:00:12]} 69. Ke2 {[%clk 0:00:11]}  a4 {[%clk 0:00:12]} 70. Rb5+ {[%clk 0:00:09]}  Kh4 {[%clk 0:00:12]} 71. Rb8 {[%clk 0:00:09]}  a3 {[%clk 0:00:12]} 72. Ra8 {[%clk 0:00:09]}  Rb3 {[%clk 0:00:12]} 73. Kf2 {[%clk 0:00:09]}  Rb2+ {[%clk 0:00:12]} 74. Ke3 {[%clk 0:00:10]}  a2 {[%clk 0:00:13]} 75. Kf4 {[%clk 0:00:09]}  Rf2+ {[%clk 0:00:11]} 76. Ke3 {[%clk 0:00:09]}  Kg3 {[%clk 0:00:12]} 77. Ke4 {[%clk 0:00:06]}  Kg2 {[%clk 0:00:12]} 78. Ke3 {[%clk 0:00:06]}  g3 {[%clk 0:00:12]} 79. Ra7 {[%clk 0:00:04]}  Rb2 {[%clk 0:00:12]} 80. Kf4 {[%clk 0:00:04]}  Kf2 {[%clk 0:00:11]} 81. Ke4 {[%clk 0:00:02]}  g2 {[%clk 0:00:12]} 82. Rf7+ {[%clk 0:00:02]}  Ke1 {[%clk 0:00:12]} 0-1


[Site "https://www.chess.com"]

[Event "Titled Tuesday Blitz February 07 Late 2023"]
[White "Shapiro, Viktor"]
[Black "Mesa Cruz, Juan Carlos"]
[WhiteFideId "4175700"]
[BlackFideId "6423400"]
[WhiteElo "2192"]
[BlackElo "2122"]
[Result "1-0"]
[Round "05"]
[TimeControl "180+2"]
[Date "2023.02.07"]
[WhiteClock "0:01:13"]
[BlackClock "0:00:51"]

1. c4 {[%clk 0:03:00]}  Nf6 {[%clk 0:02:58]} 2. Nc3 {[%clk 0:03:01]}  e6 {[%clk 0:02:57]} 3. Nf3 {[%clk 0:03:01]}  d5 {[%clk 0:02:57]} 4. d4 {[%clk 0:03:01]}  dxc4 {[%clk 0:02:54]} 5. Bg5 {[%clk 0:03:01]}  Bb4 {[%clk 0:02:53]} 6. e3 {[%clk 0:03:01]}  c5 {[%clk 0:02:53]} 7. Bxc4 {[%clk 0:02:58]}  Nbd7 {[%clk 0:02:52]} 8. O-O {[%clk 0:02:58]}  cxd4 {[%clk 0:02:52]} 9. Qxd4 {[%clk 0:02:55]}  O-O {[%clk 0:02:46]} 10. Rfd1 {[%clk 0:02:51]}  Qe7 {[%clk 0:02:43]} 11. Ne4 {[%clk 0:02:41]}  h6 {[%clk 0:02:24]} 12. Bh4 {[%clk 0:02:40]}  g5 {[%clk 0:02:14]} 13. Nfxg5 {[%clk 0:02:32]}  Nxe4 {[%clk 0:01:57]} 14. Nxe6 {[%clk 0:02:00]}  Ndf6 {[%clk 0:01:02]} 15. Nxf8 {[%clk 0:01:38]}  Kxf8 {[%clk 0:01:01]} 16. Bd3 {[%clk 0:01:17]}  Bc5 {[%clk 0:00:53]} 17. Qc4 {[%clk 0:01:14]}  Be6 {[%clk 0:00:51]} 18. Qc2 {[%clk 0:01:14]}  Rc8 {[%clk 0:00:51]} 19. Bxe4 {[%clk 0:01:13]} 1-0


[Site "https://www.chess.com"]

[Event "Titled Tuesday Blitz February 07 Late 2023"]
[White "Mikhalsky, Vladimir"]
[Black "Chan, Luis"]
[WhiteFideId "14144352"]
[BlackFideId "3216357"]
[WhiteElo "2219"]
[BlackElo "2208"]
[Result "1-0"]
[Round "05"]
[TimeControl "180+2"]
[Date "2023.02.07"]
[WhiteClock "0:00:19"]
[BlackClock "0:00:04"]

1. c4 {[%clk 0:02:58]}  Nf6 {[%clk 0:02:59]} 2. Nc3 {[%clk 0:02:58]}  e5 {[%clk 0:02:57]} 3. g3 {[%clk 0:02:57]}  Bb4 {[%clk 0:02:55]} 4. Bg2 {[%clk 0:02:57]}  O-O {[%clk 0:02:53]} 5. e4 {[%clk 0:02:56]}  Bxc3 {[%clk 0:02:34]} 6. bxc3 {[%clk 0:02:53]}  d6 {[%clk 0:02:30]} 7. Ne2 {[%clk 0:02:51]}  Be6 {[%clk 0:02:26]} 8. d3 {[%clk 0:02:51]}  Nbd7 {[%clk 0:02:18]} 9. a4 {[%clk 0:02:47]}  a5 {[%clk 0:02:16]} 10. Ba3 {[%clk 0:02:44]}  Qb8 {[%clk 0:02:06]} 11. h3 {[%clk 0:02:36]}  Qa7 {[%clk 0:02:06]} 12. O-O {[%clk 0:02:35]}  Nh5 {[%clk 0:02:04]} 13. Kh2 {[%clk 0:02:34]}  Nc5 {[%clk 0:01:41]} 14. f4 {[%clk 0:02:29]}  f6 {[%clk 0:00:48]} 15. Ng1 {[%clk 0:02:03]}  g6 {[%clk 0:00:46]} 16. f5 {[%clk 0:02:01]}  Bf7 {[%clk 0:00:46]} 17. fxg6 {[%clk 0:01:49]}  hxg6 {[%clk 0:00:47]} 18. Nf3 {[%clk 0:01:33]}  Kg7 {[%clk 0:00:41]} 19. Nh4 {[%clk 0:01:33]}  Rh8 {[%clk 0:00:31]} 20. d4 {[%clk 0:01:21]}  Ne6 {[%clk 0:00:26]} 21. Qg4 {[%clk 0:01:09]}  Ng5 {[%clk 0:00:24]} 22. Rxf6 {[%clk 0:00:55]}  Nxf6 {[%clk 0:00:13]} 23. Qxg5 {[%clk 0:00:55]}  Nd7 {[%clk 0:00:11]} 24. Nf5+ {[%clk 0:00:53]}  Kg8 {[%clk 0:00:08]} 25. Nh6+ {[%clk 0:00:50]}  Rxh6 {[%clk 0:00:08]} 26. Qxh6 {[%clk 0:00:51]}  Rf8 {[%clk 0:00:06]} 27. c5 {[%clk 0:00:45]}  Qa6 {[%clk 0:00:05]} 28. Bf1 {[%clk 0:00:41]}  Qa7 {[%clk 0:00:03]} 29. Bb5 {[%clk 0:00:22]}  c6 {[%clk 0:00:03]} 30. Bd3 {[%clk 0:00:20]}  dxc5 {[%clk 0:00:03]} 31. d5 {[%clk 0:00:19]}  cxd5 {[%clk 0:00:04]} 32. exd5 {[%clk 0:00:20]}  Qa6 {[%clk 0:00:04]} 33. Bxa6 {[%clk 0:00:19]} 1-0


[Site "https://www.chess.com"]

[Event "Titled Tuesday Blitz February 07 Late 2023"]
[White "Taboas Rodriguez, Daniel"]
[Black "Grot, Blazej"]
[WhiteFideId "2208466"]
[BlackFideId "21835845"]
[WhiteElo "2371"]
[BlackElo "1990"]
[Result "0-1"]
[Round "05"]
[TimeControl "180+2"]
[Date "2023.02.07"]
[WhiteClock "0:00:05"]
[BlackClock "0:00:06"]

1. d4 {[%clk 0:03:00]}  d5 {[%clk 0:02:58]} 2. c4 {[%clk 0:02:59]}  c6 {[%clk 0:02:58]} 3. cxd5 {[%clk 0:02:59]}  cxd5 {[%clk 0:02:58]} 4. Nc3 {[%clk 0:03:00]}  Nf6 {[%clk 0:02:58]} 5. Bf4 {[%clk 0:03:00]}  Nc6 {[%clk 0:02:58]} 6. e3 {[%clk 0:03:00]}  Bf5 {[%clk 0:02:55]} 7. Nf3 {[%clk 0:02:59]}  e6 {[%clk 0:02:54]} 8. Qb3 {[%clk 0:02:59]}  Qb6 {[%clk 0:02:38]} 9. Qxb6 {[%clk 0:02:59]}  axb6 {[%clk 0:02:38]} 10. Bb5 {[%clk 0:03:00]}  Bb4 {[%clk 0:02:33]} 11. Ne5 {[%clk 0:02:59]}  O-O {[%clk 0:02:28]} 12. Bxc6 {[%clk 0:02:57]}  bxc6 {[%clk 0:02:14]} 13. Nxc6 {[%clk 0:02:58]}  Bxc3+ {[%clk 0:02:05]} 14. bxc3 {[%clk 0:02:59]}  Ne4 {[%clk 0:02:06]} 15. Bc7 {[%clk 0:01:38]}  Rfe8 {[%clk 0:01:36]} 16. Nb4 {[%clk 0:01:06]}  Nxc3 {[%clk 0:01:18]} 17. f3 {[%clk 0:00:58]}  Ra4 {[%clk 0:00:58]} 18. a3 {[%clk 0:00:42]}  Nb5 {[%clk 0:00:32]} 19. Bxb6 {[%clk 0:00:41]}  Nxa3 {[%clk 0:00:32]} 20. Bc5 {[%clk 0:00:22]}  Rxb4 {[%clk 0:00:30]} 21. Bxb4 {[%clk 0:00:22]}  Nc2+ {[%clk 0:00:31]} 22. Kd2 {[%clk 0:00:22]}  Nxb4 {[%clk 0:00:31]} 23. g4 {[%clk 0:00:20]}  Bg6 {[%clk 0:00:30]} 24. h4 {[%clk 0:00:21]}  h6 {[%clk 0:00:24]} 25. h5 {[%clk 0:00:20]}  Bh7 {[%clk 0:00:23]} 26. Ra4 {[%clk 0:00:20]}  Nc6 {[%clk 0:00:20]} 27. Rc1 {[%clk 0:00:20]}  Ne7 {[%clk 0:00:16]} 28. Rca1 {[%clk 0:00:20]}  Kf8 {[%clk 0:00:14]} 29. Ra7 {[%clk 0:00:19]}  e5 {[%clk 0:00:10]} 30. Rd7 {[%clk 0:00:15]}  exd4 {[%clk 0:00:10]} 31. exd4 {[%clk 0:00:16]}  g6 {[%clk 0:00:07]} 32. Raa7 {[%clk 0:00:12]}  gxh5 {[%clk 0:00:07]} 33. gxh5 {[%clk 0:00:13]}  Bf5 {[%clk 0:00:07]} 34. Rdc7 {[%clk 0:00:11]}  Be6 {[%clk 0:00:07]} 35. f4 {[%clk 0:00:09]}  Nf5 {[%clk 0:00:07]} 36. Kc3 {[%clk 0:00:08]}  Rb8 {[%clk 0:00:07]} 37. Rcb7 {[%clk 0:00:02]}  Rxb7 {[%clk 0:00:04]} 38. Rxb7 {[%clk 0:00:03]}  Ng3 {[%clk 0:00:05]} 39. Kb4 {[%clk 0:00:02]}  Nxh5 {[%clk 0:00:05]} 40. Kc5 {[%clk 0:00:03]}  Nxf4 {[%clk 0:00:05]} 41. Kd6 {[%clk 0:00:04]}  Kg7 {[%clk 0:00:05]} 42. Ke5 {[%clk 0:00:04]}  Ng6+ {[%clk 0:00:05]} 43. Kd6 {[%clk 0:00:04]}  h5 {[%clk 0:00:05]} 44. Rb1 {[%clk 0:00:05]}  h4 {[%clk 0:00:05]} 45. Rh1 {[%clk 0:00:05]}  h3 {[%clk 0:00:06]} 46. Rh2 {[%clk 0:00:05]}  Kh6 {[%clk 0:00:06]} 0-1


[Site "https://www.chess.com"]

[Event "Titled Tuesday Blitz February 07 Late 2023"]
[White "Golubev, Mikhail"]
[Black "Aguilar, Juan"]
[WhiteFideId "14100983"]
[BlackFideId "3800091"]
[WhiteElo "2461"]
[BlackElo "2254"]
[Result "1-0"]
[Round "05"]
[TimeControl "180+2"]
[Date "2023.02.07"]
[WhiteClock "0:01:33"]
[BlackClock "0:00:36"]

1. e4 {[%clk 0:02:59]}  g6 {[%clk 0:02:58]} 2. d4 {[%clk 0:02:58]}  Bg7 {[%clk 0:02:59]} 3. c3 {[%clk 0:02:58]}  d6 {[%clk 0:02:55]} 4. Bg5 {[%clk 0:02:56]}  Nf6 {[%clk 0:02:54]} 5. Nd2 {[%clk 0:02:56]}  O-O {[%clk 0:02:47]} 6. Be2 {[%clk 0:02:50]}  e5 {[%clk 0:02:44]} 7. dxe5 {[%clk 0:02:49]}  dxe5 {[%clk 0:02:44]} 8. Ngf3 {[%clk 0:02:47]}  Nc6 {[%clk 0:02:43]} 9. O-O {[%clk 0:02:41]}  h6 {[%clk 0:02:42]} 10. Bh4 {[%clk 0:02:41]}  Be6 {[%clk 0:02:31]} 11. Re1 {[%clk 0:02:34]}  Qe7 {[%clk 0:02:25]} 12. Bc4 {[%clk 0:02:33]}  a5 {[%clk 0:02:17]} 13. a4 {[%clk 0:02:30]}  Bxc4 {[%clk 0:02:00]} 14. Nxc4 {[%clk 0:02:30]}  Qc5 {[%clk 0:02:00]} 15. Qb3 {[%clk 0:02:23]}  b6 {[%clk 0:01:53]} 16. Qb5 {[%clk 0:02:06]}  Rfe8 {[%clk 0:01:42]} 17. Qxc5 {[%clk 0:02:05]}  bxc5 {[%clk 0:01:41]} 18. Rad1 {[%clk 0:01:52]}  g5 {[%clk 0:01:38]} 19. Bg3 {[%clk 0:01:52]}  Nh5 {[%clk 0:01:27]} 20. Rd5 {[%clk 0:01:49]}  Nf4 {[%clk 0:01:14]} 21. Bxf4 {[%clk 0:01:46]}  exf4 {[%clk 0:01:13]} 22. Rxc5 {[%clk 0:01:46]}  Re6 {[%clk 0:01:13]} 23. e5 {[%clk 0:01:38]}  Rae8 {[%clk 0:01:10]} 24. Nd4 {[%clk 0:01:34]}  Nxd4 {[%clk 0:00:51]} 25. cxd4 {[%clk 0:01:35]}  Rb8 {[%clk 0:00:36]} 26. Rxc7 {[%clk 0:01:33]} 1-0


[Site "https://www.chess.com"]